[Event "Live Chess"]
[Site "Chess.com"]
[Date "2023.05.21"]
[Round "-"]
[White "SavagePawn7"]
[Black "NomisY"]
[Result "1-0"]
[WhiteElo "786"]
[BlackElo "1560"]
[TimeControl "300"]
[EndTime "6:06:10 PDT"]
[Termination "SavagePawn7 won by resignation"]

1. e4 {[%clk 0:04:55.2]} 1... c6 {[%clk 0:04:58.5]} 2. d4 {[%clk 0:04:49.9]}
2... d5 {[%clk 0:04:57.8]} 3. Nc3 {[%clk 0:04:47]} 3... dxe4 {[%clk 0:04:55.9]}
4. Bc4 {[%clk 0:04:45.3]} 4... Nf6 {[%clk 0:04:48.2]} 5. f3 {[%clk 0:04:43.2]}
5... exf3 {[%clk 0:04:29.8]} 6. Nxf3 {[%clk 0:04:41.3]} 6... Nbd7 {[%clk
0:04:27.3]} 7. O-O {[%clk 0:04:34.7]} 7... e6 {[%clk 0:04:26.1]} 8. Bg5 {[%clk
0:04:27.7]} 8... Be7 {[%clk 0:04:25]} 9. Qe2 {[%clk 0:04:06]} 9... Nb6 {[%clk
0:04:17.3]} 10. Bb3 {[%clk 0:04:01.9]} 10... Nbd5 {[%clk 0:04:03.5]} 11. Nxd5
{[%clk 0:03:47]} 11... cxd5 {[%clk 0:04:01.4]} 12. Ba4+ {[%clk 0:03:44.3]} 12...
Bd7 {[%clk 0:04:00.3]} 13. Bxd7+ {[%clk 0:03:42.6]} 13... Qxd7 {[%clk
0:03:59.6]} 14. Bxf6 {[%clk 0:03:40]} 14... Bxf6 {[%clk 0:03:56.7]} 15. Ne5
{[%clk 0:03:34.7]} 15... Bxe5 {[%clk 0:03:47.1]} 16. dxe5 {[%clk 0:03:30]} 16...
O-O {[%clk 0:03:45.8]} 17. h4 {[%clk 0:03:23.6]} 17... Rac8 {[%clk 0:03:44.7]}
18. g4 {[%clk 0:03:18.6]} 18... Qc7 {[%clk 0:03:43.5]} 19. Rac1 {[%clk
0:03:16.5]} 19... Qxe5 {[%clk 0:03:42.1]} 20. Qxe5 {[%clk 0:03:14.2]} 1-0

[Event "Live Chess"]
[Site "Chess.com"]
[Date "2023.05.21"]
[Round "-"]
[White "Biranidun"]
[Black "zdanevych"]
[Result "1-0"]
[WhiteElo "2528"]
[BlackElo "1509"]
[TimeControl "300"]
[EndTime "6:06:14 PDT"]
[Termination "Biranidun won by resignation"]

1. e4 {[%clk 0:04:59.4]} 1... c5 {[%clk 0:04:58.4]} 2. Nf3 {[%clk 0:04:58.4]}
2... e6 {[%clk 0:04:57.5]} 3. d4 {[%clk 0:04:57.8]} 3... d5 {[%clk 0:04:56.4]}
4. exd5 {[%clk 0:04:56.8]} 4... exd5 {[%clk 0:04:55.6]} 5. Bb5+ {[%clk
0:04:56.1]} 5... Nc6 {[%clk 0:04:54.4]} 6. O-O {[%clk 0:04:55.1]} 6... a6 {[%clk
0:04:53.5]} 7. Re1+ {[%clk 0:04:52.6]} 7... Be6 {[%clk 0:04:52.1]} 8. Bxc6+
{[%clk 0:04:51.4]} 8... bxc6 {[%clk 0:04:51.3]} 9. Ng5 {[%clk 0:04:46.7]} 9...
Be7 {[%clk 0:04:18.1]} 10. Nxe6 {[%clk 0:04:42.8]} 10... fxe6 {[%clk 0:04:18]}
11. Rxe6 {[%clk 0:04:42]} 11... Nf6 {[%clk 0:04:12.6]} 12. dxc5 {[%clk
0:04:32.8]} 12... O-O {[%clk 0:04:08.1]} 13. Re2 {[%clk 0:04:15.5]} 13... Bxc5
{[%clk 0:04:04.3]} 14. Be3 {[%clk 0:04:14.2]} 14... Bd6 {[%clk 0:04:00.3]} 15.
h3 {[%clk 0:04:10.3]} 15... Ne4 {[%clk 0:03:58.8]} 16. Nd2 {[%clk 0:04:08.6]}
16... Qe7 {[%clk 0:03:51.2]} 17. Nxe4 {[%clk 0:04:07.3]} 17... Qxe4 {[%clk
0:03:51.1]} 18. Bc5 {[%clk 0:04:02.2]} 18... Qg6 {[%clk 0:03:45.8]} 19. Bxd6
{[%clk 0:04:00.7]} 19... Qxd6 {[%clk 0:03:45.7]} 20. Qd3 {[%clk 0:03:59.1]}
20... Rf6 {[%clk 0:03:40.4]} 21. Rae1 {[%clk 0:03:57.6]} 21... Raf8 {[%clk
0:03:39.3]} 22. Qxa6 {[%clk 0:03:56]} 22... Qf4 {[%clk 0:03:36.8]} 23. Qd3
{[%clk 0:03:53.2]} 23... d4 {[%clk 0:03:33.7]} 24. Qg3 {[%clk 0:03:48.5]} 24...
Qf5 {[%clk 0:03:30.1]} 25. b4 {[%clk 0:03:36.1]} 25... c5 {[%clk 0:03:27.3]} 26.
bxc5 {[%clk 0:03:25.9]} 26... Qxc5 {[%clk 0:03:27.2]} 27. Re7 {[%clk 0:03:19.8]}
27... R6f7 {[%clk 0:03:10.6]} 28. Qb3 {[%clk 0:03:15.7]} 28... Qf5 {[%clk
0:02:57.7]} 29. Rxf7 {[%clk 0:03:14.4]} 29... Qxf7 {[%clk 0:02:54.6]} 30. Qxf7+
{[%clk 0:03:11]} 30... Rxf7 {[%clk 0:02:53.2]} 31. Rd1 {[%clk 0:03:08.9]} 31...
Rd7 {[%clk 0:02:51.9]} 32. Rd3 {[%clk 0:03:07.2]} 32... Kf7 {[%clk 0:02:50.8]}
33. c3 {[%clk 0:03:05.7]} 1-0

[Event "Live Chess"]
[Site "Chess.com"]
[Date "2023.05.21"]
[Round "-"]
[White "hturner40"]
[Black "MartynColebrook"]
[Result "1-0"]
[WhiteElo "1779"]
[BlackElo "957"]
[TimeControl "300"]
[EndTime "6:06:22 PDT"]
[Termination "hturner40 won by resignation"]

1. Nf3 {[%clk 0:04:57.3]} 1... g6 {[%clk 0:04:58]} 2. g3 {[%clk 0:04:53.5]} 2...
Nf6 {[%clk 0:04:56.5]} 3. Bg2 {[%clk 0:04:52.1]} 3... Bg7 {[%clk 0:04:55.2]} 4.
O-O {[%clk 0:04:51]} 4... d6 {[%clk 0:04:53.7]} 5. d4 {[%clk 0:04:49.7]} 5...
Nc6 {[%clk 0:04:51.1]} 6. Nc3 {[%clk 0:04:44.6]} 6... O-O {[%clk 0:04:49]} 7. e4
{[%clk 0:04:43.6]} 7... e5 {[%clk 0:04:43.5]} 8. d5 {[%clk 0:04:25.6]} 8... Ne7
{[%clk 0:04:40.4]} 9. h3 {[%clk 0:04:17]} 9... Nd7 {[%clk 0:04:36]} 10. Be3
{[%clk 0:03:47.7]} 10... f5 {[%clk 0:04:30.9]} 11. Ng5 {[%clk 0:03:46.5]} 11...
Nf6 {[%clk 0:04:21.9]} 12. f4 {[%clk 0:03:32]} 12... fxe4 {[%clk 0:04:11.7]} 13.
fxe5 {[%clk 0:02:55.8]} 13... dxe5 {[%clk 0:03:55.3]} 14. Ngxe4 {[%clk
0:02:44.6]} 14... Nf5 {[%clk 0:03:44.4]} 15. Bc5 {[%clk 0:02:39.3]} 15... Rf7
{[%clk 0:03:27.2]} 16. Ng5 {[%clk 0:02:33.3]} 16... Nxg3 {[%clk 0:03:14.7]} 17.
Nxf7 {[%clk 0:02:26.1]} 17... Qd7 {[%clk 0:02:57.8]} 18. Nxe5 {[%clk 0:02:19.2]}
18... Qd8 {[%clk 0:02:38.9]} 19. Re1 {[%clk 0:01:36.2]} 19... Nfh5 {[%clk
0:02:28.1]} 20. d6 {[%clk 0:01:31.6]} 20... Bf5 {[%clk 0:01:55]} 21. Qd5+ {[%clk
0:01:27.2]} 21... Kh8 {[%clk 0:01:45.7]} 22. Nf7+ {[%clk 0:01:25.6]} 22... Kg8
{[%clk 0:01:39.9]} 23. Nxd8+ {[%clk 0:01:24.4]} 1-0

[Event "Live Chess"]
[Site "Chess.com"]
[Date "2023.05.21"]
[Round "-"]
[White "KeithArkell"]
[Black "JohanKjeldahl"]
[Result "1-0"]
[WhiteElo "2481"]
[BlackElo "1879"]
[TimeControl "300"]
[EndTime "6:06:42 PDT"]
[Termination "KeithArkell won by resignation"]

1. d4 {[%clk 0:04:57.6]} 1... Nf6 {[%clk 0:04:58.2]} 2. Nf3 {[%clk 0:04:57]}
2... e6 {[%clk 0:04:56.7]} 3. c4 {[%clk 0:04:56.4]} 3... b6 {[%clk 0:04:54.8]}
4. g3 {[%clk 0:04:54.8]} 4... Bb7 {[%clk 0:04:53.9]} 5. Bg2 {[%clk 0:04:54.1]}
5... Be7 {[%clk 0:04:52.8]} 6. Nh4 {[%clk 0:04:51.6]} 6... Bxg2 {[%clk 0:04:49]}
7. Nxg2 {[%clk 0:04:50.8]} 7... O-O {[%clk 0:04:48]} 8. Nc3 {[%clk 0:04:50.1]}
8... c5 {[%clk 0:04:46.1]} 9. d5 {[%clk 0:04:48.6]} 9... d6 {[%clk 0:04:43.9]}
10. O-O {[%clk 0:04:44.4]} 10... e5 {[%clk 0:04:43]} 11. e4 {[%clk 0:04:43.1]}
11... Nbd7 {[%clk 0:04:41.1]} 12. a4 {[%clk 0:04:39.6]} 12... a6 {[%clk
0:04:39.9]} 13. Ne3 {[%clk 0:04:33.5]} 13... g6 {[%clk 0:04:35.2]} 14. Kg2
{[%clk 0:04:32.8]} 14... Kg7 {[%clk 0:04:33.6]} 15. h3 {[%clk 0:04:30.6]} 15...
h5 {[%clk 0:04:32.5]} 16. Bd2 {[%clk 0:04:25.2]} 16... Rh8 {[%clk 0:04:29.8]}
17. Qe2 {[%clk 0:04:20.9]} 17... Nh7 {[%clk 0:04:27.7]} 18. h4 {[%clk 0:04:12]}
18... Qc7 {[%clk 0:04:23.1]} 19. Ra2 {[%clk 0:04:09.3]} 19... Raf8 {[%clk
0:04:19.6]} 20. a5 {[%clk 0:04:05.1]} 20... bxa5 {[%clk 0:04:11.9]} 21. Rfa1
{[%clk 0:04:01.3]} 21... Nhf6 {[%clk 0:04:00.3]} 22. Rxa5 {[%clk 0:03:57.8]}
22... Ra8 {[%clk 0:03:59]} 23. Rxa6 {[%clk 0:03:49.6]} 23... Rxa6 {[%clk
0:03:57.1]} 24. Rxa6 {[%clk 0:03:49.5]} 24... Qb7 {[%clk 0:03:56]} 25. Ra2
{[%clk 0:03:48.2]} 25... Rb8 {[%clk 0:03:49.2]} 26. Qd1 {[%clk 0:03:45.6]} 26...
Qb3 {[%clk 0:03:46.7]} 27. Qxb3 {[%clk 0:03:44.7]} 27... Rxb3 {[%clk 0:03:45]}
28. Kf1 {[%clk 0:03:32.7]} 28... Nb6 {[%clk 0:03:31.6]} 29. Ke2 {[%clk
0:03:29.6]} 29... Nfd7 {[%clk 0:03:29.9]} 30. Kd3 {[%clk 0:03:28.3]} 30... f6
{[%clk 0:03:07.5]} 31. Kc2 {[%clk 0:03:24]} 31... Rb4 {[%clk 0:03:05.6]} 32. b3
{[%clk 0:03:23.1]} 32... Nc8 {[%clk 0:03:00.7]} 33. Nb5 {[%clk 0:03:20.2]} 33...
g5 {[%clk 0:02:54.7]} 34. Bxb4 {[%clk 0:03:18.7]} 34... cxb4 {[%clk 0:02:53.5]}
35. Ra8 {[%clk 0:03:16.6]} 35... Ncb6 {[%clk 0:02:49.8]} 36. Nf5+ {[%clk
0:03:15.6]} 36... Kf7 {[%clk 0:02:46.6]} 37. Ra7 {[%clk 0:03:12]} 37... gxh4
{[%clk 0:02:35.4]} 38. gxh4 {[%clk 0:03:10.7]} 38... Bf8 {[%clk 0:02:26]} 39. f3
{[%clk 0:03:09.4]} 39... Kg6 {[%clk 0:02:18.3]} 40. Nbxd6 {[%clk 0:03:06.2]}
40... Bxd6 {[%clk 0:02:14.7]} 41. Nxd6 {[%clk 0:03:05.2]} 41... Nc5 {[%clk
0:02:13.6]} 42. Nf5 {[%clk 0:03:03.4]} 1-0

[Event "Live Chess"]
[Site "Chess.com"]
[Date "2023.05.21"]
[Round "-"]
[White "JoeRoot66"]
[Black "ameetghasi100"]
[Result "1-0"]
[WhiteElo "1908"]
[BlackElo "2579"]
[TimeControl "300"]
[EndTime "6:06:47 PDT"]
[Termination "JoeRoot66 won by checkmate"]

1. e4 {[%clk 0:04:58.8]} 1... c5 {[%clk 0:04:59.9]} 2. c3 {[%clk 0:04:57.1]}
2... Nc6 {[%clk 0:04:59.8]} 3. d4 {[%clk 0:04:56.3]} 3... e6 {[%clk 0:04:58.8]}
4. d5 {[%clk 0:04:52.8]} 4... Nce7 {[%clk 0:04:55.9]} 5. c4 {[%clk 0:04:49.7]}
5... Ng6 {[%clk 0:04:54.1]} 6. Nc3 {[%clk 0:04:48.4]} 6... a6 {[%clk 0:04:50.7]}
7. Nf3 {[%clk 0:04:36.7]} 7... d6 {[%clk 0:04:40.1]} 8. h4 {[%clk 0:04:33.6]}
8... h5 {[%clk 0:04:31.1]} 9. Bd3 {[%clk 0:04:32]} 9... e5 {[%clk 0:04:29.5]}
10. Bg5 {[%clk 0:04:23.8]} 10... Be7 {[%clk 0:04:28.1]} 11. g3 {[%clk
0:04:06.1]} 11... Bg4 {[%clk 0:04:25.9]} 12. Bxe7 {[%clk 0:03:59.8]} 12... N8xe7
{[%clk 0:04:25.8]} 13. Be2 {[%clk 0:03:56.8]} 13... O-O {[%clk 0:04:23.8]} 14.
Ng5 {[%clk 0:03:52.7]} 14... Qd7 {[%clk 0:04:23.2]} 15. Bxg4 {[%clk 0:03:42]}
15... Qxg4 {[%clk 0:04:20.7]} 16. Qxg4 {[%clk 0:03:41.2]} 16... hxg4 {[%clk
0:04:20.6]} 17. h5 {[%clk 0:03:40.1]} 17... Nh8 {[%clk 0:04:20.2]} 18. Rh4
{[%clk 0:03:29.3]} 18... f6 {[%clk 0:04:17.8]} 19. Ne6 {[%clk 0:03:27.3]} 19...
f5 {[%clk 0:04:13.4]} 20. exf5 {[%clk 0:03:02]} 20... Rxf5 {[%clk 0:04:09.6]}
21. Rxg4 {[%clk 0:02:58.7]} 21... Rf7 {[%clk 0:04:02.8]} 22. Ne4 {[%clk
0:02:56.9]} 22... Nf5 {[%clk 0:04:01.9]} 23. Rg5 {[%clk 0:02:45.1]} 23... Nd4
{[%clk 0:03:57.4]} 24. Nf6+ {[%clk 0:02:40.1]} 24... Rxf6 {[%clk 0:03:54.6]} 25.
Rxg7# {[%clk 0:02:39.2]} 1-0

[Event "Live Chess"]
[Site "Chess.com"]
[Date "2023.05.21"]
[Round "-"]
[White "romchyk1219"]
[Black "Conradical12"]
[Result "0-1"]
[WhiteElo "648"]
[BlackElo "1582"]
[TimeControl "300"]
[EndTime "6:06:50 PDT"]
[Termination "Conradical12 won by resignation"]

1. e4 {[%clk 0:04:58.8]} 1... e5 {[%clk 0:04:58.1]} 2. Nf3 {[%clk 0:04:57.5]}
2... Nc6 {[%clk 0:04:57.6]} 3. Bb5 {[%clk 0:04:56.8]} 3... Nf6 {[%clk 0:04:57]}
4. Nc3 {[%clk 0:04:55]} 4... Bb4 {[%clk 0:04:55]} 5. O-O {[%clk 0:04:50.4]} 5...
O-O {[%clk 0:04:52.9]} 6. a3 {[%clk 0:04:44.3]} 6... Bd6 {[%clk 0:04:50.2]} 7.
Nd5 {[%clk 0:04:33.9]} 7... Nd4 {[%clk 0:04:47.2]} 8. Nxd4 {[%clk 0:04:30.6]}
8... Nxd5 {[%clk 0:04:42.3]} 9. exd5 {[%clk 0:04:24.3]} 9... exd4 {[%clk
0:04:40.3]} 10. Bd3 {[%clk 0:04:19.2]} 10... Qf6 {[%clk 0:04:37.5]} 11. Qh5
{[%clk 0:04:10.8]} 11... g6 {[%clk 0:04:32.6]} 12. Qe2 {[%clk 0:04:02.9]} 12...
b6 {[%clk 0:04:28.4]} 13. Be4 {[%clk 0:03:57.3]} 13... Bb7 {[%clk 0:04:24.6]}
14. d3 {[%clk 0:03:52.5]} 14... Rae8 {[%clk 0:04:16.8]} 15. Bh6 {[%clk
0:03:50.7]} 15... Qd8 {[%clk 0:04:11.3]} 16. Bxf8 {[%clk 0:03:49.2]} 16... Bxf8
{[%clk 0:04:10.1]} 17. Rae1 {[%clk 0:03:38.8]} 17... f5 {[%clk 0:04:08.5]} 18.
Qf3 {[%clk 0:03:29.2]} 18... fxe4 {[%clk 0:04:03.7]} 19. Rxe4 {[%clk 0:03:28.5]}
19... Rxe4 {[%clk 0:03:50.9]} 20. Qxe4 {[%clk 0:03:26.2]} 20... Qf6 {[%clk
0:03:49.9]} 21. Qf4 {[%clk 0:03:26.1]} 21... Qxf4 {[%clk 0:03:47.8]} 0-1

[Event "Live Chess"]
[Site "Chess.com"]
[Date "2023.05.21"]
[Round "-"]
[White "Ian-Morley"]
[Black "OleksiyJr1"]
[Result "1-0"]
[WhiteElo "1068"]
[BlackElo "1009"]
[TimeControl "300"]
[EndTime "6:06:50 PDT"]
[Termination "Ian-Morley won by resignation"]

1. d4 {[%clk 0:04:58.4]} 1... Nf6 {[%clk 0:04:58.1]} 2. Bg5 {[%clk 0:04:54.4]}
2... c6 {[%clk 0:04:53.4]} 3. Bxf6 {[%clk 0:04:49.6]} 3... exf6 {[%clk
0:04:53.3]} 4. Nc3 {[%clk 0:04:47.8]} 4... d5 {[%clk 0:04:52.2]} 5. g3 {[%clk
0:04:42.5]} 5... Nd7 {[%clk 0:04:46.3]} 6. Bg2 {[%clk 0:04:40.1]} 6... Nb6
{[%clk 0:04:41.7]} 7. f4 {[%clk 0:04:38.2]} 7... Bb4 {[%clk 0:04:35.2]} 8. a3
{[%clk 0:04:35.8]} 8... Ba5 {[%clk 0:04:33.8]} 9. b4 {[%clk 0:04:34.7]} 9...
Bxb4 {[%clk 0:04:33]} 10. axb4 {[%clk 0:04:34.1]} 10... O-O {[%clk 0:04:31.5]}
11. Nf3 {[%clk 0:04:28.9]} 11... Bg4 {[%clk 0:04:24.1]} 12. h3 {[%clk
0:04:25.7]} 12... Bf5 {[%clk 0:04:21.9]} 1-0

[Event "Live Chess"]
[Site "Chess.com"]
[Date "2023.05.21"]
[Round "-"]
[White "LanceMaster23"]
[Black "JoRoSaR"]
[Result "1-0"]
[WhiteElo "1948"]
[BlackElo "1687"]
[TimeControl "300"]
[EndTime "6:06:54 PDT"]
[Termination "LanceMaster23 won by checkmate"]

1. Nf3 {[%clk 0:04:50.2]} 1... e6 {[%clk 0:04:59]} 2. d4 {[%clk 0:04:48.4]} 2...
f5 {[%clk 0:04:57.9]} 3. Bf4 {[%clk 0:04:47.6]} 3... Nf6 {[%clk 0:04:57.3]} 4.
e3 {[%clk 0:04:46.8]} 4... Be7 {[%clk 0:04:56.7]} 5. h3 {[%clk 0:04:45.4]} 5...
O-O {[%clk 0:04:56.3]} 6. Be2 {[%clk 0:04:44.7]} 6... d6 {[%clk 0:04:56]} 7.
Nbd2 {[%clk 0:04:43.1]} 7... Qe8 {[%clk 0:04:55.6]} 8. c3 {[%clk 0:04:42.7]}
8... Nbd7 {[%clk 0:04:55.3]} 9. Qb3 {[%clk 0:04:41.7]} 9... Bd8 {[%clk
0:04:51.6]} 10. O-O {[%clk 0:04:38.3]} 10... Kh8 {[%clk 0:04:51.1]} 11. Rfe1
{[%clk 0:04:37.2]} 11... e5 {[%clk 0:04:50.5]} 12. dxe5 {[%clk 0:04:36.1]} 12...
dxe5 {[%clk 0:04:50.4]} 13. Bg3 {[%clk 0:04:33.6]} 13... c6 {[%clk 0:04:49.8]}
14. Nc4 {[%clk 0:04:32.5]} 14... e4 {[%clk 0:04:46.4]} 15. Nd4 {[%clk
0:04:27.7]} 15... Nb6 {[%clk 0:04:44.1]} 16. Nd6 {[%clk 0:04:23.2]} 16... Qd7
{[%clk 0:04:36.3]} 17. Rad1 {[%clk 0:03:25.2]} 17... Bc7 {[%clk 0:04:32]} 18.
N4xf5 {[%clk 0:03:16.3]} 18... Nbd5 {[%clk 0:04:19.7]} 19. Nxc8 {[%clk 0:03:07]}
19... Bxg3 {[%clk 0:04:10.3]} 20. Nxg3 {[%clk 0:02:56.3]} 20... Qxc8 {[%clk
0:04:06.2]} 21. c4 {[%clk 0:02:51.2]} 21... Ne7 {[%clk 0:04:04.7]} 22. Qc2
{[%clk 0:02:45.9]} 22... Qe6 {[%clk 0:04:01.1]} 23. Rd4 {[%clk 0:02:41.1]} 23...
Nf5 {[%clk 0:03:55.2]} 24. Nxf5 {[%clk 0:02:30.8]} 24... Qxf5 {[%clk 0:03:55.1]}
25. Bg4 {[%clk 0:02:21.4]} 25... Nxg4 {[%clk 0:03:47.9]} 26. hxg4 {[%clk
0:02:21.3]} 26... Qxg4 {[%clk 0:03:45.8]} 27. Qxe4 {[%clk 0:02:15.7]} 27... Qxe4
{[%clk 0:03:30.8]} 28. Rxe4 {[%clk 0:02:15.6]} 28... Rf7 {[%clk 0:03:28.1]} 29.
Rd1 {[%clk 0:02:12.2]} 29... Kg8 {[%clk 0:03:26.8]} 30. Red4 {[%clk 0:02:08.8]}
30... Raf8 {[%clk 0:03:24.1]} 31. f3 {[%clk 0:02:07.1]} 31... g6 {[%clk
0:03:23.4]} 32. Rd7 {[%clk 0:02:04.8]} 32... Kg7 {[%clk 0:03:22.3]} 33. Kf2
{[%clk 0:02:00.6]} 33... Kf6 {[%clk 0:03:20.8]} 34. R1d6+ {[%clk 0:01:58.6]}
34... Ke5 {[%clk 0:03:18.9]} 35. f4+ {[%clk 0:01:50.3]} 35... Kf5 {[%clk
0:03:17.9]} 36. Kf3 {[%clk 0:01:40.9]} 36... Rxd7 {[%clk 0:03:10.3]} 37. e4#
{[%clk 0:01:36.3]} 1-0

[Event "Live Chess"]
[Site "Chess.com"]
[Date "2023.05.21"]
[Round "-"]
[White "Hussamalhaidar"]
[Black "lateforthesky"]
[Result "0-1"]
[WhiteElo "1119"]
[BlackElo "2133"]
[TimeControl "300"]
[EndTime "6:07:01 PDT"]
[Termination "lateforthesky won by checkmate"]

1. b3 {[%clk 0:04:55.7]} 1... e5 {[%clk 0:04:53.7]} 2. Bb2 {[%clk 0:04:54.3]}
2... d6 {[%clk 0:04:53]} 3. e3 {[%clk 0:04:52.3]} 3... g6 {[%clk 0:04:50.4]} 4.
d4 {[%clk 0:04:50.2]} 4... Bg7 {[%clk 0:04:33.5]} 5. dxe5 {[%clk 0:04:46.6]}
5... dxe5 {[%clk 0:04:24.4]} 6. Qxd8+ {[%clk 0:04:43.7]} 6... Kxd8 {[%clk
0:04:23.7]} 7. Nf3 {[%clk 0:04:41.9]} 7... f6 {[%clk 0:04:17.8]} 8. Nbd2 {[%clk
0:04:36.3]} 8... Nc6 {[%clk 0:04:12.7]} 9. O-O-O {[%clk 0:04:34]} 9... Ke8
{[%clk 0:04:02.1]} 10. Bb5 {[%clk 0:04:29.8]} 10... Ne7 {[%clk 0:03:58.4]} 11.
Nc4 {[%clk 0:04:23.8]} 11... a6 {[%clk 0:03:55.6]} 12. Bxc6+ {[%clk 0:04:16.6]}
12... Nxc6 {[%clk 0:03:55.1]} 13. h3 {[%clk 0:04:09.7]} 13... Be6 {[%clk
0:03:52.6]} 14. g4 {[%clk 0:04:01.2]} 14... b5 {[%clk 0:03:44.3]} 15. Ncd2
{[%clk 0:03:50.7]} 15... Kf7 {[%clk 0:03:06.5]} 16. Ne4 {[%clk 0:03:44.3]} 16...
Rad8 {[%clk 0:03:00.1]} 17. Nc5 {[%clk 0:03:40.5]} 17... Bc8 {[%clk 0:02:44.2]}
18. Rxd8 {[%clk 0:03:34.5]} 18... Rxd8 {[%clk 0:02:42.6]} 19. Rd1 {[%clk
0:03:31.1]} 19... Rxd1+ {[%clk 0:02:40.2]} 20. Kxd1 {[%clk 0:03:29.7]} 20... Bf8
{[%clk 0:02:38.7]} 21. Ne4 {[%clk 0:03:15.4]} 21... h5 {[%clk 0:02:35.1]} 22. g5
{[%clk 0:03:09.7]} 22... Bxh3 {[%clk 0:02:26.1]} 23. Nxf6 {[%clk 0:02:58.9]}
23... Ke6 {[%clk 0:02:06.5]} 24. Ne4 {[%clk 0:02:34.1]} 24... Bg4 {[%clk
0:02:02.1]} 25. Ke2 {[%clk 0:02:27.1]} 25... Be7 {[%clk 0:01:52.1]} 26. Nf6
{[%clk 0:02:14.8]} 26... Bxf6 {[%clk 0:01:44.3]} 27. gxf6 {[%clk 0:02:13.4]}
27... Kxf6 {[%clk 0:01:43.3]} 28. e4 {[%clk 0:02:12.4]} 28... Nd4+ {[%clk
0:01:31.3]} 29. Bxd4 {[%clk 0:02:07.9]} 29... exd4 {[%clk 0:01:30]} 30. a3
{[%clk 0:02:05.5]} 30... h4 {[%clk 0:01:28.8]} 31. e5+ {[%clk 0:01:58.9]} 31...
Kf5 {[%clk 0:01:16.6]} 32. b4 {[%clk 0:01:34.9]} 32... h3 {[%clk 0:01:06.1]} 33.
e6 {[%clk 0:01:14.3]} 33... Kxe6 {[%clk 0:01:03.4]} 34. c3 {[%clk 0:01:08.7]}
34... dxc3 {[%clk 0:00:56.5]} 35. Ke3 {[%clk 0:01:07.8]} 35... Bxf3 {[%clk
0:00:55]} 36. Kxf3 {[%clk 0:01:05.9]} 36... c2 {[%clk 0:00:54.2]} 37. Kg3 {[%clk
0:00:59.9]} 37... c1=Q {[%clk 0:00:53]} 38. Kxh3 {[%clk 0:00:59.1]} 38... Qg1
{[%clk 0:00:48.9]} 39. f3 {[%clk 0:00:57.1]} 39... Kf5 {[%clk 0:00:46.8]} 40. f4
{[%clk 0:00:54.7]} 40... Kxf4 {[%clk 0:00:45.2]} 41. a4 {[%clk 0:00:50.8]} 41...
Qg3# {[%clk 0:00:43.7]} 0-1

[Event "Live Chess"]
[Site "Chess.com"]
[Date "2023.05.21"]
[Round "-"]
[White "LL220284LL"]
[Black "davigator"]
[Result "0-1"]
[WhiteElo "2270"]
[BlackElo "2313"]
[TimeControl "300"]
[EndTime "6:07:08 PDT"]
[Termination "davigator won by resignation"]

1. e3 {[%clk 0:04:59.3]} 1... g6 {[%clk 0:04:57.4]} 2. b3 {[%clk 0:04:58.4]}
2... Bg7 {[%clk 0:04:55.9]} 3. d4 {[%clk 0:04:58.3]} 3... c5 {[%clk 0:04:54.3]}
4. Bb2 {[%clk 0:04:57.6]} 4... Nc6 {[%clk 0:04:53.4]} 5. Nf3 {[%clk 0:04:56.5]}
5... d5 {[%clk 0:04:51.7]} 6. Be2 {[%clk 0:04:55.3]} 6... Bf5 {[%clk 0:04:48.5]}
7. O-O {[%clk 0:04:53.9]} 7... b6 {[%clk 0:04:46.6]} 8. Nbd2 {[%clk 0:04:53.2]}
8... Rc8 {[%clk 0:04:39.3]} 9. Rc1 {[%clk 0:04:46.8]} 9... Nh6 {[%clk
0:04:37.2]} 10. a3 {[%clk 0:04:45.7]} 10... O-O {[%clk 0:04:35.1]} 11. c4 {[%clk
0:04:40.4]} 11... e6 {[%clk 0:04:26.5]} 12. cxd5 {[%clk 0:04:38.9]} 12... exd5
{[%clk 0:04:24.9]} 13. Bb5 {[%clk 0:04:36.9]} 13... Ne7 {[%clk 0:04:16.1]} 14.
Qe2 {[%clk 0:04:33.3]} 14... Ng4 {[%clk 0:04:10.3]} 15. Rfd1 {[%clk 0:04:30]}
15... h5 {[%clk 0:03:59.9]} 16. Nf1 {[%clk 0:04:26.7]} 16... Nf6 {[%clk
0:03:53.6]} 17. Ne5 {[%clk 0:04:14.4]} 17... Ne4 {[%clk 0:03:52]} 18. Nd2 {[%clk
0:04:11.1]} 18... Nd6 {[%clk 0:03:50.3]} 19. Ba6 {[%clk 0:04:08.2]} 19... Rc7
{[%clk 0:03:48.5]} 20. Ndf3 {[%clk 0:04:07.3]} 20... f6 {[%clk 0:03:32.6]} 21.
Nd3 {[%clk 0:04:06.5]} 21... Ne4 {[%clk 0:03:29.6]} 22. Nf4 {[%clk 0:04:02]}
22... Bh6 {[%clk 0:03:21.3]} 23. dxc5 {[%clk 0:03:57.8]} 23... Bxf4 {[%clk
0:03:17.6]} 24. exf4 {[%clk 0:03:55.8]} 24... Nxc5 {[%clk 0:03:08.5]} 25. b4
{[%clk 0:03:47.6]} 25... Nxa6 {[%clk 0:03:05.2]} 26. Qxa6 {[%clk 0:03:47.5]}
26... Bg4 {[%clk 0:03:00.3]} 27. Qd3 {[%clk 0:03:43]} 27... Kg7 {[%clk
0:02:53.8]} 28. Rxc7 {[%clk 0:03:41.2]} 28... Qxc7 {[%clk 0:02:52.4]} 29. Re1
{[%clk 0:03:40.7]} 29... Rf7 {[%clk 0:02:44.2]} 30. Nd4 {[%clk 0:03:39.3]} 30...
Bf5 {[%clk 0:02:40.4]} 31. Nxf5+ {[%clk 0:03:35.7]} 31... Nxf5 {[%clk
0:02:38.8]} 32. Qxd5 {[%clk 0:03:34.9]} 32... Qc2 {[%clk 0:02:37]} 33. Ba1
{[%clk 0:03:24.3]} 33... Re7 {[%clk 0:02:27]} 34. Rf1 {[%clk 0:03:02.4]} 34...
Qe2 {[%clk 0:02:22.1]} 35. g3 {[%clk 0:02:58.1]} 35... h4 {[%clk 0:02:20.3]} 36.
Qd1 {[%clk 0:02:52.8]} 36... Qe4 {[%clk 0:02:13.2]} 37. Bc3 {[%clk 0:02:44.6]}
37... h3 {[%clk 0:02:11.4]} 38. f3 {[%clk 0:02:42.4]} 38... Qe3+ {[%clk
0:02:10.9]} 0-1

[Event "Live Chess"]
[Site "Chess.com"]
[Date "2023.05.21"]
[Round "-"]
[White "Anirudh_23"]
[Black "garyjc"]
[Result "1-0"]
[WhiteElo "1890"]
[BlackElo "1040"]
[TimeControl "300"]
[EndTime "6:07:14 PDT"]
[Termination "Anirudh_23 won by resignation"]

1. Nf3 {[%clk 0:04:58.8]} 1... d5 {[%clk 0:04:52.3]} 2. g3 {[%clk 0:04:57.7]}
2... Nf6 {[%clk 0:04:46.7]} 3. Bg2 {[%clk 0:04:56.5]} 3... Nc6 {[%clk
0:04:43.8]} 4. d4 {[%clk 0:04:54.8]} 4... e6 {[%clk 0:04:39.1]} 5. O-O {[%clk
0:04:53.2]} 5... Bd6 {[%clk 0:04:34.7]} 6. c4 {[%clk 0:04:51.6]} 6... dxc4
{[%clk 0:04:24.9]} 7. Qa4 {[%clk 0:04:49.1]} 7... Bd7 {[%clk 0:04:20.8]} 8. Qxc4
{[%clk 0:04:46.8]} 8... O-O {[%clk 0:04:14.2]} 9. Nc3 {[%clk 0:04:43]} 9... a6
{[%clk 0:04:07.1]} 10. e4 {[%clk 0:04:33.5]} 10... b5 {[%clk 0:04:06]} 11. Qe2
{[%clk 0:04:26]} 11... Bb4 {[%clk 0:04:00.3]} 12. a3 {[%clk 0:04:21.5]} 12...
Bxc3 {[%clk 0:03:58]} 13. bxc3 {[%clk 0:04:21.4]} 13... Na5 {[%clk 0:03:37.8]}
14. Bg5 {[%clk 0:04:17.1]} 14... Nc4 {[%clk 0:03:32.7]} 15. e5 {[%clk 0:04:13]}
15... b4 {[%clk 0:03:15.9]} 16. Qxc4 {[%clk 0:04:08.5]} 1-0